Cogmind - Beta 15 @@@ ROGUE MODE // 2025.05.16 @ 15:40:30 Player: Nika Jay Result: Destroyed by G-47 Trooper with Particle Gun Performance ------------- Evolutions (0) 0 Regions Visited (1) 200 Robots Destroyed (14) 70 Value Destroyed (296) 296 Prototype IDs (0) 0 Alien Tech Used (0) 0 Bonus (0) 0 TOTAL SCORE: 566 Bonus ------- None Cogmind --------- Core Integrity 0/250 Matter 300/300 Energy 242/250 System Corruption 0% Temperature Warm (184) Movement Walking (190) Ox1 Location -10/Materials Parts ------- > --- POWER (1) -------- Ion Engine > --- PROPULSION (2) --- Aluminum Leg > --- UTILITY (2) ------ Small Storage Unit > --- WEAPON (2) ------- Medium Laser Small Laser > --- INVENTORY (8) ---- Aluminum Leg Aluminum Leg Aluminum Leg Aluminum Leg Seismic Detector Seismic Detector Particle Gun Peak State ------------ > --- POWER ------------ Light Ion Engine > --- PROPULSION ------- Aluminum Leg Aluminum Leg > --- UTILITY ---------- Improved Heat Sink Small Storage Unit > --- WEAPON ----------- Medium Laser Light Assault Rifle > --- INVENTORY -------- Ion Engine Aluminum Leg Aluminum Leg Aluminum Leg Aluminum Leg Seismic Detector Seismic Detector [Rating: 9] Favorites ----------- Power Ion Engine Engine Ion Engine Propulsion Aluminum Leg Leg Aluminum Leg Utility Small Storage Unit Device Seismic Detector Storage Small Storage Unit Weapon Small Laser Energy Gun Small Laser Ballistic Gun Light Assault Rifle Build | -11 -10 ------- Run | Yrd Mat Slots Evolved . | . . Power . | . . Propulsion . | . . Utility . | . . Weapon . | . . Parts Attached 16 | 7 9 Power 3 | 1 2 Engine 3 | 1 2 Core . | . . Reactor . | . . Propulsion 6 | 2 4 Treads . | . . Leg 6 | 2 4 Wheel . | . . Hover . | . . Flight . | . . Utility 3 | 2 1 Device 2 | 1 1 Storage 1 | 1 . Processor . | . . Hackware . | . . Protection . | . . Artifact . | . . Weapon 4 | 2 2 Energy Gun 3 | 1 2 Energy Cannon . | . . Ballistic Gun 1 | 1 . Ballistic Cannon . | . . Launcher . | . . Special Weapon . | . . Impact Weapon . | . . Slashing Weapon . | . . Piercing Weapon . | . . Special Melee Weapon . | . . Unidentified Prototypes . | . . Parts Lost 6 | . 6 Power 2 | . 2 Propulsion 2 | . 2 Utility 1 | . 1 Weapon 1 | . 1 Highest Loss Streak 2 | . 2 To Critical Strikes . | . . Average Backups 4 | 1 5 Power . | . . Propulsion 1 | . 2 Utility 1 | . 1 Weapon . | . 1 Tool/Special . | . . Unused Backups 7 | . 7 Power 1 | . 1 Propulsion 4 | . 4 Utility 1 | . 1 Weapon 1 | . 1 Tool/Special . | . . Average Slot Usage (%) 89 | . 89 Engine 11 | . 11 Leg 27 | . 27 Device 6 | . 6 Storage 14 | . 14 Energy Gun 18 | . 18 Ballistic Gun 9 | . 9 Peak Build Rating 9 | 7 9 Average Rating 6 | 5 6 On Entrance 3 | . 7 Naked Turns . | . . Heaviest Build 14 | 13 14 Greatest Support 20 | 20 20 Greatest Overweight (x) . | . . Average Overweight (x) . | . . Largest Inventory Capacity 8 | 8 8 Average Capacity 7 | 7 8 Most Carried 8 | 3 8 Average Carried 4 | 1 5 Final Capacity 8 | 8 8 Final Carried 7 | 3 7 Class Distribution -------------------- 90% | Mutant 9% | Scavenger-Mutant Dominant Class ---------------- Mutant | -10/Materials Resources | -11 -10 ----------- Run | Yrd Mat Matter Collected 394 | 281 113 Remotely . | . . Salvage Created 596 | 129 467 Parts 32 | 10 22 Haulers Intercepted . | . . Recyclers Shooed 3 | . 3 Parts Field Recycled . | . . Retrieved Matter . | . . Parts Self-Destructed . | . . Prevented . | . . Kills | -11 -10 ------- Run | Yrd Mat Combat Hostiles Destroyed 7 | . 7 Guns 6 | . 6 Classes Destroyed 3 | 2 1 Tunneler 3 | 3 . Recycler 4 | 1 3 Grunt 7 | . 7 Best Kill Streak 4 | 2 4 Combat Bots Only 4 | . 4 Max Kills in Single Turn 1 | 1 1 Gunslinging . | . . Exploded . | . . Melee . | . . Uniques/NPCs Destroyed . | . . Combat | -11 -10 -------- Run | Yrd Mat Hostile Shots Fired 96 | . 96 Missed 27 | . 27 Hits 69 | . 69 Projectile 69 | . 69 Critical Strikes 2 | . 2 Damage Taken 911 | . 911 Core 255 | . 255 Absorbed by Shields . | . . Core Remaining (%) 100 | 100 . Volleys Fired 59 | 11 48 Largest 2 | 2 2 Hottest 90 | 60 90 Shots Fired 118 | 22 96 Gun 118 | 22 96 Cannon . | . . Launcher . | . . Special . | . . Kinetic 44 | 11 33 Thermal 74 | 11 63 Explosive . | . . Electromagnetic . | . . Robot Hit Streak 13 | 5 13 Robot Miss Streak 2 | 2 2 Penetration Max . | . . Secondary Targets 2 | . 2 Max Gunslinging Chain 1 | . 1 Shots Hit Robots 87 | 14 73 Core Hits 26 | 6 20 Critical Kills . | . . Critical Parts Destroyed . | . . Critical Strikes 2 | . 2 Burn 2 | . 2 Melee Attacks . | . . Impact . | . . Slashing . | . . Piercing . | . . Sneak Attacks . | . . Combat Hostiles . | . . Follow-up Attacks . | . . Damage Inflicted 900 | 135 765 Guns 892 | 135 757 Cannons . | . . Explosions . | . . Melee . | . . Ramming 8 | . 8 Kinetic 227 | 67 160 Thermal 665 | 68 597 Explosive . | . . Electromagnetic . | . . Impact . | . . Slashing . | . . Piercing . | . . Highest Corruption . | . . Average Corruption . | . . Corruption Purged . | . . Corruption Blocked . | . . Overload Shots . | . . Overflow Damage . | . . Projectiles . | . . Explosions . | . . Melee . | . . Knockbacks 1 | . 1 Impact 1 | . 1 Kinetic . | . . Secondary . | . . Self-Inflicted Damage . | . . Shots . | . . Rammed . | . . Targets Rammed 3 | . 3 Kicked 3 | . 3 Crushed . | . . Highest Temperature 216 | 60 216 Average Temperature 68 | 27 76 Received Heat Transfer 534 | . 534 Siege Activations . | . . Martial Activations . | . . Shielding Activations . | . . Robots Disrupted . | . . Combat Hostiles . | . . Robots Corrupted . | . . Combat Hostiles . | . . Parts Fried . | . . Impact Corruptions . | . . Robots Melted 1 | . 1 Combat Hostiles 1 | . 1 Parts Melted 1 | . 1 Heat Transferred 1754 | 150 1604 Parts Sabotaged . | . . Parts Stolen . | . . Parts Stripped . | . . Power Chain Reactions . | . . Alert | -11 -10 ------- Run | Yrd Mat Maximum Alert Level . | . . Low Security (%) 100 | 100 100 Level 1 . | . . Level 2 . | . . Level 3 . | . . Level 4 . | . . Level 5 . | . . High Security . | . . Max Security . | . . Peak Influence 60 | 10 60 Initial . | . . Average 22 | 2 28 Influence Increases 270 | 20 250 Destroy 0b10 Robot/C 140 | . 140 Destroy 0b10 Robot/NC 35 | 20 15 Destroy Leader 20 | . 20 Successful Hack 15 | . 15 Lose Combat Pursuer 60 | . 60 Influence Decreases 241 | 20 221 Time Decay 181 | 20 161 Lost Part 60 | . 60 Squads Dispatched 2 | . 2 Investigation 1 | . 1 Extermination . | . . Reinforcement 1 | . 1 Assault . | . . Garrison . | . . Intercept . | . . Searches Triggered . | . . Construction Impeded . | . . Haulers Reinforced . | . . Active Scanning Responses . | . . Cargo Convoy Interrupts . | . . Stealth | -11 -10 --------- Run | Yrd Mat Distress Signals 2 | . 2 Communications Jammed . | . . Distress Signals . | . . Times Spotted 15 | . 15 Peak Tracking Total 6 | . 6 Tactical Retreats 3 | . 3 Traps | -11 -10 ------- Run | Yrd Mat Traps Triggered . | . . Indirectly . | . . Trap Hack Attempts . | . . Triggered . | . . Disarmed . | . . Reprogrammed . | . . Reused . | . . Traps Extracted . | . . Installed . | . . Triggered . | . . Machines | -11 -10 ---------- Run | Yrd Mat Machines Disabled . | . . Max in Single Turn . | . . Machines Repaired . | . . Machines Dismantled . | . . Machines Sabotaged . | . . Overloaded Fab Kills . | . . Hacking | -11 -10 --------- Run | Yrd Mat Machines Accessed 2 | . 2 Terminals 2 | . 2 Fabricators . | . . Repair Stations . | . . Recycling Units . | . . Scanalyzers . | . . Garrison Access . | . . Total Hacks 9 | . 9 Successful 5 | . 5 Failed 4 | . 4 Catastrophic . | . . Database Lockouts . | . . Manual 7 | . 7 Terminals 9 | . 9 Fabricators . | . . Repair Stations . | . . Recycling Units . | . . Scanalyzers . | . . Garrison Access . | . . Terminal Hacks 3 | . 3 Branch Access Points 1 | . 1 Locate Traps 1 | . 1 Zone Layout 1 | . 1 Fabricator Hacks . | . . Repair Station Hacks . | . . Recycling Unit Hacks . | . . Scanalyzer . | . . Garrison Access Hacks . | . . Unauthorized Hacks 2 | . 2 Terminals 2 | . 2 Botnet 2 | . 2 Fabricators . | . . Repair Stations . | . . Recycling Units . | . . Scanalyzers . | . . Garrison Access . | . . Data Cores Recovered . | . . Used . | . . Hacking Detections 2 | . 2 Full Trace Events 1 | . 1 Feedback Events . | . . Feedback Blocked . | . . Robot Schematics Acquired . | . . Robots Built . | . . Authchips . | . . Time . | . . Total Robot Build Rating . | . . Part Schematics Acquired . | . . Parts Built . | . . Authchips . | . . Time . | . . Total Part Build Rating . | . . Parts Repaired . | . . Time . | . . Parts Recycled . | . . Recycled Matter . | . . Retrieved Matter . | . . Retrieved Components . | . . Parts Scanalyzed . | . . Part Schematics Acquired . | . . Parts Damaged . | . . Bothacking | -11 -10 ------------ Run | Yrd Mat Used RIF Installer . | . . Robots Hacked . | . . Non-combat . | . . Combat . | . . Robot Hacks Applied . | . . Relay Couplers Released . | . . Fabnet Peak Effective % . | . . Robots Rewired . | . . Allies Hacked . | . . Hacks Repelled . | . . Allies | -11 -10 -------- Run | Yrd Mat Total Allies . | . . Largest Group . | . . Highest-Rated Group . | . . Highest-Rated Ally . | . . Total Orders . | . . Ally Attacks . | . . Total Damage . | . . Kills . | . . Allies Corrupted . | . . Allies Melted . | . . Intel | -11 -10 ------- Run | Yrd Mat Active Infowar (turns) 175 | 59 116 Seismic 175 | 59 116 Robot Analysis Total . | . . Derelict Logs Recovered . | . . Drone Launches . | . . Drone Recoveries . | . . Exploration | -11 -10 ------------- Run | Yrd Mat Turns Passed 536 | 115 421 Spaces Moved 254 | 60 194 Core 1 | 1 . Treads . | . . Legs 253 | 59 194 Wheels . | . . Hover . | . . Flight . | . . Fastest Speed 50 | 50 120 Average Speed 119 | 118 120 Slowest Speed 120 | 120 120 Overloaded Moves . | . . Propulsion Burnouts . | . . Robots Hopped . | . . Potential Cave-ins . | . . Cave-ins Triggered . | . . Exploration Rate (%) 24 | 5 43 Regions Visited 1 Branch Regions . Pre-discovered Areas . | . . Known Exits Taken . | . . Unknown Exits Taken 1 | 1 . Scrap Searched . | . . Spaces Dug . | . . Terrain Destroyed . | . . Melee . | . . Projectile . | . . AOE . | . . Terrain Rammed . | . . Walls Destroyed . | . . Machines Disabled . | . . Actions | -11 -10 --------- Run | Yrd Mat Total 375 | 80 295 Wait 29 | . 29 Move 253 | 59 194 Hop . | . . Pick Up 9 | 3 6 Fast Attach 11 | 7 4 Attach 2 | . 2 Detach 1 | . 1 Swap 3 | . 3 Drop 5 | . 5 Fire 59 | 11 48 Melee . | . . Ram . | . . Kick 3 | . 3 Crush . | . . Escape Stasis . | . . Rewire . | . . Trap . | . . Miscellaneous . | . . Route ------- -11/Scrapyard -10/Materials (discovered 1 exit: *Min) History --------- Turn | Location | Event 15 | -11/Scrapyard | Discovered new exit (range 16) 116 | -11/Scrapyard | Entered Materials 212 | -10/Materials | Identified exit to Mines 356 | -10/Materials | Build established: Mutant 359 | -10/Materials | Core integrity fell below 50% 441 | -10/Materials | Core integrity fell below 20% 537 | -10/Materials | Destroyed by G-47 Trooper with Particle Gun Last Messages --------------- 00437_ G-34 Mercenary heat spikes uncontrollably. 00440_ Critical hit (Burn: +37). 00442_ G-47 Trooper suffers critical hit (Burn). 00442_ G-47 Trooper overheating. 00442_ Lgt. Ion Engine destroyed. 00444_ G-47 Trooper heat short circuits Aluminum Leg. 00445_ G-47 Trooper overheating. 00448_ G-34 Mercenary destroyed. 00449_ G-47 Trooper heat short circuits Particle Gun. 00450_ G-47 Trooper heat damages Imp. Heat Sink, Lgt. Nuclear Core, Broken Aluminum Leg, Broken Particle Gun. 00451_ G-47 Trooper heat spikes uncontrollably. 00453_ Acquired Aluminum Leg. 00455_ G-47 Trooper heat short circuits Imp. Heat Sink. 00456_ G-47 Trooper heat damages Lgt. Nuclear Core. 00477_ Imp. Heat Sink destroyed. 00484_ Acquired 15 matter. 00509_ ALERT: Hostiles spotted, dispatching reinforcements to Terminal M008. 00535_ Aluminum Leg destroyed. Map ----- +----------------------------------------------------+ | ?????????????????????????????????????????????? | | ?????????????????????????????????????????????? | | ?????????????????????????????????????????????? | | ?????????????????????????????????????????????? | | ?????????????????????????????????????????????? | | ?????????????????????????????????????????????? | | ?????????????????????????????????????????????? | | ?????????????????????????????????????????????? | | ?????????????????????????????????????????????? | | ???????? ??????????????????????????????????? | | ??????? ????????????????#T#???????????????? | | ??????? ??????????????? ??????????????? | | ???????# #??????????????? ??????????????? | | ####?### ##?????????????? ??????????????? | | ##" #?????????????? #??????????????? | | """##"" #?????????????? #??????????????? | | """##!! #?????????????? #??????????????? | | """##"" > #?????????????# #??????????????? | | """##!! #?????????????# #??????????????? | | ##"" #?????????????# #??????????????? | | %% ##" #?????????????# #??????????????? | | +####### ################ #??????????????? | | =*##### # # # #??????????????? | | [% %=%! / """"" # # #??????????????? | | "[ = != # """"" # g #??????????????? | | %!= % # """"" # %| @# #??????????????? | | ==%##### # # | /# #??????????????? | | /####### ####/#### | # #??????????????? | | % # #??# #??######## #??????????????? | | " """ # #??# #?? # #??????????????? | | "" """ # #??# #?? # #??????????????? | | "" """ # #### ## # #??????????????? | | #^ # # #??????????????? | | ########^ + # #??????????????? | | # + ^""" # # #??????????????? | | # #^^""""" # # #??????????????? | | # """ # """"" #? # #??????????????? | | # """ # ^""""" #? # #??????????????? | | + """ + """ ########## ######?????????? | | # # % #?????????? | | ######## #?????????? | | #?????????? | | #####+#############+#####????????? | | #?# #?????# #????????? | | #?# T #?????# """ #????????? | | ####+## #?# #?????# """ | #????????? | | ###+##### #?????# """ #????????? | | ! # ## #?????# #????????? | | """ # ## #?????# """ #????????? | | "R # #########?????# """ #????????? | +----------------------------------------------------+ Best States ------------- Heat Dissipation 39 Energy Generation 10 Energy Capacity 250 Matter Stores 300 Matter Capacity 300 Sight Range 16 Terrain Scan Density 10 Evasion (%) 55 Item Schematics ----------------- None Robot Schematics ------------------ None Fabricated ------------ Nothing Repaired ---------- Nothing Alien Tech Used ----------------- None Achievements -------------- None Challenges ------------ None Game ------ Seed SignalReinforcedBiocell Manual? 0 Play Time 00:05:38 Cumulative 151.4 hours Start 2025.05.16 @ 15:35:07 End 2025.05.16 @ 15:40:30 Sessions 1 Manual Loads 0 Difficulty Rogue Special Mode None Game No. 79 Rogue 75 Adventurer 2 Explorer 2 Win Type - Total 2 Types 1/0/1/0/0/0/0/0/0/0 Lore% 62 Gallery% 63 Achievement% 51 Wizard Run 0 Options --------- Layout 0 ASCII 0 Keyboard 1 Movement Arrows Keybinds 0 Fullscreen 2 Font 18/Terminus Map View 76x50 Zoom Use 0% Tactical HUD 1 Map Filters NONE Filters NONE Steam 1 RUN: ef2f5966-6872-453b-b7c6-2d4e6092b537